bitfinex/quotes_ETHUSD_20250604
["timestamp","ask_amount","ask_price","bid_price","bid_amount"]
[1749069698323,0.55,2605.7,2605.6,8.139]
[1749069698522,0.7599,2605.7,2605.6,8.139]
[1749069700669,0.2099,2605.7,2605.6,8.139]
[1749069703738,1.529,2605.8,2605.6,8.139]
[1749069704232,0.02,2605.9,2605.6,8.139]
[1749069704434,0.02,2605.9,2605.7,13.034003]
[1749069708028,0.02,2605.9,2605.8,13.4177623]
[1749069708770,0.00032059,2605.9,2605.8,13.4177623]
[1749069711509,0.00032059,2605.9,2605.8,13.034003]
[1749069711661,0.00032059,2605.9,2605.8,19.451003]
[1749069712355,0.00032059,2605.9,2605.8,19.8347623]
[1749069712777,0.00032059,2605.9,2605.8,5.041637]
[1749069713900,0.00032059,2605.9,2605.8,11.457637]
[1749069715619,0.00032059,2605.9,2605.8,9.584937]
[1749069715779,0.00032059,2605.9,2605.8,3.169937]
[1749069715969,0.00032059,2605.9,2605.8,9.584937]
[1749069717006,0.00032059,2605.9,2605.8,17.858937]
[1749069718652,0.00032059,2605.9,2605.8,11.232215]
[1749069718917,1.56812059,2605.9,2605.8,16.405]
[1749069721204,1.56812059,2605.9,2605.8,21.446637]
[1749069722997,1.56812059,2605.9,2605.8,16.405]
[1749069723598,1.56812059,2605.9,2605.8,21.446637]
[1749069724298,0.00032059,2605.9,2605.8,21.446637]
[1749069724697,0.00032059,2605.9,2605.8,9.99]
[1749069724868,0.00032059,2605.9,2605.8,16.404]
[1749069725071,4.58504012,2605.9,2605.8,9.99]
[1749069725309,5.26443413,2605.9,2605.8,16.404]
[1749069725506,5.26443413,2605.9,2605.8,9.99]
[1749069725708,5.26443413,2605.9,2605.8,16.404]
[1749069726932,0.6797146,2605.9,2605.8,16.404]
[1749069727121,0.00032059,2605.9,2605.8,16.404]
[1749069730603,4.58504012,2605.9,2605.8,16.404]
[1749069732952,4.58504012,2605.9,2605.8,16.403]
[1749069735303,0.00032059,2605.9,2605.8,16.403]
[1749069735860,0.00032059,2605.9,2605.8,21.444637]
[1749069736723,0.00032059,2605.9,2605.8,18.732459]
[1749069740224,0.00032059,2605.9,2605.8,11.203705]
[1749069740553,0.00032059,2605.9,2605.8,16.402]
[1749069741244,0.00032059,2605.9,2605.8,9.991]
[1749069741405,1.1678246,2605.9,2605.8,8.274]
[1749069741609,2.7578246,2605.9,2605.8,9.991]
[1749069741808,0.55,2605.6,2604.9,8.275]
[1749069742058,0.6178246,2605.9,2604.7,8.275]
[1749069742059,2.14,2604.9,2604.7,8.275]
[1749069742223,4.58471953,2604.8,2603.8,30.38404753]
[1749069742544,4.58471953,2604.8,2604.0,24.604912]
[1749069742732,4.58471953,2604.8,2604.0,23.438208]
[1749069743530,4.58471953,2604.8,2604.0,23.156819]
[1749069743712,4.58471953,2604.8,2604.0,15.11514073]
[1749069743906,4.58471953,2604.8,2604.1,11.202513]
[1749069744108,4.58471953,2604.8,2604.1,21.202513]
[1749069744347,4.58471953,2604.8,2604.1,3.160835]
[1749069744522,4.58471953,2604.6,2604.2,6.411]
[1749069744718,4.58471953,2604.6,2604.4,10.0]
[1749069744916,4.58471953,2604.6,2604.5,1.713]
[1749069745151,1.6419,2604.5,2604.1,13.991557]
[1749069745354,1.6419,2604.5,2604.2,1.713]
[1749069745566,1.6419,2604.5,2604.3,6.411]
[1749069746244,1.6419,2604.8,2604.3,6.411]
[1749069747642,1.6419,2604.8,2604.2,1.713]
[1749069747643,0.55,2604.7,2604.4,6.411]
[1749069750883,2.1418,2604.5,2604.2,1.713]
[1749069751178,2.1418,2604.5,2604.3,6.412]
[1749069751566,2.1418,2604.5,2603.9,8.275]
[1749069751738,2.1418,2604.5,2604.0,8.126]
[1749069754675,2.1418,2604.5,2604.1,6.412]
[1749069756330,2.1418,2604.5,2604.0,1.714]
[1749069756479,2.1418,2604.5,2604.2,6.411]
[1749069756680,3.31113692,2604.5,2604.2,6.411]
[1749069756881,3.31113692,2604.5,2604.3,6.411]
[1749069757084,3.31113692,2604.5,2604.4,6.411]
[1749069757489,3.31113692,2604.5,2603.9,8.275]
[1749069757686,7.88,2605.5,2603.9,8.275]
[1749069757687,0.55,2604.1,2604.0,8.126]
[1749069759802,1.5207,2605.4,2604.0,8.126]
[1749069760009,1.5207,2605.0,2604.0,8.126]
[1749069760375,1.5207,2605.0,2604.1,23.422493]
[1749069760574,1.5207,2605.0,2604.1,18.763883]
[1749069760805,11.10916917,2605.2,2604.2,14.721324]
[1749069761113,11.10916917,2605.2,2604.1,12.266593]
[1749069761318,11.10916917,2605.2,2604.1,12.65059596]
[1749069761609,11.10916917,2605.2,2604.2,13.13689]
[1749069761809,11.10916917,2605.2,2604.1,16.802173]
[1749069762713,11.10916917,2605.2,2604.1,8.87024614]
[1749069762914,11.10916917,2605.2,2604.1,27.590479]
[1749069763117,11.10916917,2605.2,2604.1,15.195092]
[1749069763334,0.55,2605.1,2604.2,10.0]
[1749069763529,0.55,2605.1,2604.2,8.125]
[1749069765479,1.5576,2605.0,2604.2,8.125]
[1749069765679,1.96187761,2605.0,2604.2,8.125]
[1749069767729,9.55156917,2604.9,2604.3,6.41]
[1749069768307,0.55,2604.8,2604.2,1.714]
[1749069768512,1.6604,2604.7,2604.1,0.51]
[1749069768697,9.55156917,2604.6,2604.1,0.51]
[1749069768905,9.55156917,2604.6,2604.2,8.123]
[1749069769190,4.59237296,2604.4,2604.2,8.123]
[1749069769728,4.59237296,2604.4,2604.3,6.409]
[1749069770623,5.14237296,2604.6,2604.3,6.409]
[1749069772528,4.59237296,2604.4,2604.2,1.714]
[1749069772726,6.19407296,2604.4,2604.3,6.409]
[1749069773027,6.74407296,2604.4,2604.3,1.714]
[1749069773212,7.48650799,2604.4,2604.3,8.123]
[1749069773996,1.6017,2604.4,2604.3,8.123]
[1749069775531,0.02,2603.9,2603.6,12.645039]
[1749069775841,0.02,2603.9,2603.6,2.645039]
[1749069776634,0.02,2603.9,2603.7,6.408]
[1749069776798,0.02,2603.9,2603.8,2.040058]
[1749069777631,0.02,2603.9,2603.8,12.030058]
[1749069778635,0.02,2603.9,2603.8,9.99]
[1749069779797,0.02,2603.9,2603.8,12.481104]
[1749069781602,0.02,2603.9,2603.8,9.99]
[1749069782608,0.02,2603.9,2603.8,12.323128]
[1749069784538,0.02,2603.9,2603.8,12.70718207]
[1749069786450,0.02,2603.9,2603.8,17.68383265]
[1749069786644,0.02,2603.9,2603.8,18.02746378]
[1749069786816,3.869e-05,2603.9,2603.8,18.02746378]
[1749069787019,3.869e-05,2603.9,2603.8,17.68383265]
[1749069788723,3.869e-05,2603.9,2603.8,17.29955503]
[1749069790118,3.869e-05,2603.9,2603.8,18.43351322]
[1749069790846,3.869e-05,2603.9,2603.8,18.23383265]
[1749069791433,3.869e-05,2603.9,2603.8,15.58855503]
[1749069791634,3.869e-05,2603.9,2603.8,23.70455503]
[1749069792106,3.869e-05,2603.9,2603.8,24.25455503]
[1749069795444,3.869e-05,2603.9,2603.8,24.25355503]
[1749069795648,3.869e-05,2603.9,2603.8,16.13855503]
[1749069795950,3.869e-05,2603.9,2603.8,24.25355503]
[1749069796929,0.02,2604.9,2603.9,30.0]
[1749069797139,0.02,2604.9,2604.1,40.0]
[1749069797345,0.02,2604.9,2604.1,28.07922]
[1749069801124,0.02,2604.9,2604.5,12.702267]
[1749069801324,0.02,2604.9,2604.7,10.0]
[1749069801568,0.02,2604.9,2604.8,6.402]
[1749069801922,0.02,2604.9,2604.8,9.988]
[1749069802366,0.02,2604.9,2604.8,34.956564]
[1749069802759,0.02,2604.9,2604.8,33.840822]
[1749069803265,0.02,2604.9,2604.8,40.62672863]
[1749069803833,0.02,2604.9,2604.8,37.04220063]
[1749069804132,0.02,2604.9,2604.8,22.331965]
[1749069806562,0.02,2604.9,2604.8,22.71587163]
[1749069807162,0.00025494,2604.9,2604.8,22.71587163]
[1749069817398,1.5702,2605.7,2605.1,0.3838524]
[1749069818050,1.5702,2605.7,2605.1,21.287136]
[1749069818256,1.5702,2605.7,2605.1,21.67099225]
[1749069818563,1.5702,2605.7,2605.1,0.38385625]
[1749069819065,1.5702,2605.7,2605.3,0.38382956]
[1749069819284,1.5702,2605.7,2605.4,1.706]
[1749069829621,1.5702,2605.7,2605.5,8.275]
[1749069830199,1.5702,2605.7,2605.6,6.394]
[1749069831601,1.55332059,2605.9,2605.6,6.394]
[1749069833934,0.00032059,2605.9,2605.7,4.59237296]
[1749069834227,0.00032059,2605.9,2605.8,8.099]
[1749069834425,0.00032059,2605.9,2605.8,33.8156413]
[1749069835020,1.5781,2606.7,2606.1,0.38370456]
[1749069835234,1.5781,2606.7,2606.2,0.38369854]
[1749069835743,1.5781,2606.7,2606.2,19.014877]
[1749069835926,1.5781,2606.7,2606.2,19.39856928]
[1749069836104,1.5781,2606.7,2606.2,0.38369228]
[1749069836700,1.5781,2606.7,2606.3,12.217487]
[1749069836900,1.5781,2606.7,2606.5,10.0]
[1749069837137,1.5781,2606.7,2606.4,1.702]
[1749069837930,1.5981,2606.9,2606.4,1.702]
[1749069838521,1.5981,2606.9,2606.5,5.5278]
[1749069838722,1.5981,2606.9,2606.6,6.391]
[1749069840637,1.5981,2606.9,2606.2,0.51]
[1749069840849,4.59237296,2606.6,2606.2,0.51]
[1749069841031,4.59237296,2606.6,2606.3,8.092]
[1749069841032,2.2047173,2606.5,2606.3,8.092]
[1749069841234,2.2047173,2606.5,2606.4,1.702]
[1749069841614,1.5868,2606.5,2606.4,1.702]
[1749069841813,2.1368,2606.5,2606.4,1.702]
[1749069842313,1.5868,2606.3,2605.6,6.202979]
[1749069842524,1.5868,2606.2,2605.8,3.869147]
[1749069842726,1.5868,2606.2,2605.9,10.0]
[1749069842934,2.2047173,2606.2,2605.8,3.840997]
[1749069843129,2.2047173,2606.2,2605.9,10.0]
[1749069843634,2.2047173,2606.2,2606.0,6.389]
[1749069843856,1.5868,2606.2,2606.0,6.389]
[1749069845143,1.5868,2606.2,2606.1,9.975]
[1749069846340,1.5868,2606.2,2606.1,16.363]
[1749069847172,1.5868,2606.2,2605.6,9.050042]
[1749069847539,1.5868,2606.2,2605.8,6.403997]
[1749069847861,1.5868,2606.2,2605.9,10.0]
[1749069848468,1.5868,2606.2,2606.0,6.388]
[1749069848841,2.1368,2606.2,2606.1,9.976]
[1749069849064,2.35048,2606.2,2606.1,9.976]
[1749069849731,1.80048,2606.2,2606.1,9.976]
[1749069849935,1.6271,2606.8,2606.1,9.976]
[1749069850228,0.55,2606.5,2606.2,6.387]
[1749069850434,0.55,2606.3,2606.2,6.387]
[1749069851276,0.76771,2606.3,2606.2,6.387]
[1749069852860,0.76771,2606.3,2606.1,8.274]
[1749069853057,1.5743,2606.2,2606.1,8.274]
[1749069853372,1.5743,2606.2,2606.1,16.363]
[1749069854945,1.5743,2606.2,2606.1,16.362]
[1749069855149,1.808501,2606.2,2606.1,16.362]
[1749069856354,1.5743,2606.8,2606.2,5.214611]
[1749069856575,1.5743,2606.8,2606.3,10.0]
[1749069856876,0.55,2606.7,2606.3,10.0]
[1749069857075,0.55,2606.7,2606.2,3.865239]
[1749069857076,0.55,2606.5,2606.2,3.865239]
[1749069857266,0.55,2606.5,2606.3,10.0]
[1749069857464,0.55,2606.5,2606.2,3.865239]
[1749069857640,0.55,2606.7,2606.3,10.0]
[1749069857842,0.55,2606.7,2606.2,3.875819]
[1749069858376,0.55,2606.7,2606.3,10.0]
[1749069859658,0.55,2606.7,2606.2,3.875819]
[1749069859982,0.55,2606.7,2606.3,10.0]
[1749069860486,0.55,2606.7,2606.2,3.875819]
[1749069860780,0.55,2606.7,2606.3,10.0]
[1749069861152,1.5677,2606.8,2606.2,7.686669]
[1749069861349,1.5677,2606.8,2606.3,10.0]
[1749069861551,1.5677,2606.8,2606.2,3.875819]
[1749069861755,1.5677,2606.8,2606.3,10.0]
[1749069861974,1.5677,2606.8,2606.2,3.875819]
[1749069862176,1.5677,2606.8,2606.3,10.0]
[1749069863039,1.5677,2606.8,2606.2,3.875819]
[1749069863040,0.55,2606.7,2606.2,3.875819]
[1749069863259,1.6037,2606.6,2606.3,10.0]
[1749069863478,0.55,2606.5,2606.4,8.086]
[1749069865399,0.55,2606.5,2606.2,3.870263]
[1749069865400,1.2246073,2606.5,2606.2,3.870263]
[1749069865570,1.2246073,2606.5,2606.4,8.086]
[1749069865897,0.55,2606.5,2606.4,1.702]
[1749069866099,0.55,2606.5,2606.4,8.085]
[1749069866499,0.55,2606.5,2606.4,1.702]
[1749069866655,0.55,2606.5,2606.4,8.085]
[1749069869304,0.55,2606.5,2606.4,1.702]
[1749069869612,7.47198026,2606.5,2606.4,8.084]
[1749069869799,6.79737296,2606.5,2606.4,8.084]
[1749069870703,6.79737296,2606.5,2606.4,8.079]
[1749069873165,2.205,2606.5,2606.4,8.079]
[1749069874305,2.205,2606.5,2606.4,16.352]
[1749069881912,0.55,2606.5,2606.4,16.352]
[1749069883087,0.55,2606.5,2606.4,16.349]
[1749069884184,0.55,2606.5,2606.4,8.273]
[1749069884384,0.55,2606.5,2606.4,16.349]
[1749069886832,0.55,2606.6,2606.4,16.349]
[1749069891826,1.6358,2606.9,2606.5,11.861229]
[1749069892001,0.02,2606.9,2606.5,5.778247]
[1749069892201,0.02,2606.9,2606.4,16.73266489]
[1749069892202,0.02,2606.9,2606.6,10.0]
[1749069892599,0.02,2606.9,2606.6,4.586882]
[1749069895135,0.02,2606.9,2606.7,8.073]
[1749069895359,0.57,2606.9,2606.7,8.073]
[1749069895863,0.57,2606.9,2606.5,0.51]
[1749069896037,0.57,2606.9,2606.6,18.068]
[1749069896236,0.57,2606.9,2606.6,8.068]
[1749069897936,0.57,2606.9,2606.7,8.068]
[1749069900478,0.57,2606.9,2606.5,0.51]
[1749069900648,0.02,2606.9,2606.8,8.067]
[1749069902572,0.02,2606.9,2606.5,0.51]
[1749069902573,0.55,2606.8,2606.5,0.51]
[1749069902870,0.55,2606.8,2606.6,8.066]
[1749069903069,1.2168373,2606.8,2606.6,8.066]
[1749069904147,1.2168373,2606.8,2606.7,9.965]
[1749069904346,1.2168373,2606.8,2606.7,8.272]
[1749069904551,2.7631373,2606.8,2606.7,9.965]
[1749069905368,2.7631373,2606.8,2606.7,16.338]
[1749069906170,2.7631373,2606.8,2604.5,0.58356705]
[1749069906480,2.0963,2606.3,2605.2,25.451448]
[1749069906639,2.0963,2606.3,2605.4,22.907935]
[1749069906834,2.0963,2606.3,2605.4,12.907935]
[1749069907370,2.0963,2606.3,2605.5,6.75679576]
[1749069907671,2.0963,2606.3,2605.8,10.0]
[1749069907973,2.0963,2606.3,2605.7,10.0]
[1749069908163,2.0963,2606.3,2605.6,14.276172]
[1749069908339,0.55,2606.1,2605.7,11.693]
[1749069908537,2.1398,2605.9,2605.8,8.065]
[1749069908736,2.1398,2605.9,2605.8,1.693]
[1749069908968,2.1398,2605.9,2605.8,8.065]
[1749069909164,2.78062209,2605.9,2605.8,8.065]
[1749069909436,2.78062209,2605.9,2605.8,1.693]
[1749069913689,0.55,2605.1,2604.5,1.693]
[1749069913983,2.1271,2604.6,2604.5,1.693]
[1749069914146,6.93218296,2604.6,2604.5,1.693]
[1749069914745,6.93018296,2604.6,2604.5,1.693]
[1749069915082,0.55,2604.5,2602.6,4.59237296]
[1749069915282,6.71747296,2604.2,2602.4,4.59237296]
[1749069915457,11.30984592,2604.2,2602.4,4.59237296]
[1749069915785,7.84845755,2604.2,2603.6,6.372]
[1749069916168,7.84845755,2604.2,2603.6,6.374]
[1749069916469,7.84845755,2604.2,2602.6,4.59237296]
[1749069916641,7.84845755,2604.2,2603.5,6.374]
[1749069917578,7.84845755,2604.2,2604.1,1.714]
[1749069923881,1.5751,2604.2,2604.1,1.714]
[1749069924083,4.59237296,2604.6,2604.1,1.714]
[1749069924288,1.6356,2604.9,2604.1,1.714]
[1749069924802,1.5737,2605.2,2604.2,19.06915296]
[1749069925007,1.5737,2605.2,2604.1,2.09800972]
[1749069925008,0.55,2605.1,2604.3,6.375]
[1749069925202,5.14237296,2605.1,2604.3,6.375]
[1749069925372,4.59237296,2605.1,2604.3,6.375]
[1749069925778,0.55,2605.0,2604.3,6.375]
[1749069926192,4.59237296,2605.1,2604.3,6.375]
[1749069926639,4.59237296,2605.1,2604.4,6.375]
[1749069926911,0.55,2605.0,2604.4,6.375]
[1749069930720,0.55,2605.1,2604.4,6.375]
[1749069932226,0.55,2605.1,2604.5,9.97]
[1749069932936,0.55,2605.1,2603.1,0.57912042]
[1749069933082,0.55,2605.1,2603.7,30.0]
[1749069933415,0.55,2605.1,2603.8,6.374]
[1749069933416,0.21237,2605.0,2603.8,6.374]
[1749069933713,0.21237,2605.0,2603.9,8.455755]
[1749069934823,0.55,2605.1,2603.9,8.455755]
[1749069936730,0.55,2605.1,2603.4,9.54921319]
[1749069936731,0.55,2604.9,2603.4,9.54921319]
[1749069936936,0.55,2604.9,2603.5,30.744053]
[1749069937111,0.55,2604.9,2603.6,6.373]
[1749069937313,0.55,2604.9,2603.7,10.0]
[1749069937629,0.21075,2604.8,2603.8,9.97]
[1749069938441,0.55,2604.6,2603.8,9.97]
[1749069940951,0.55,2604.6,2603.9,17.962005]
[1749069941154,1.5212,2605.2,2603.9,15.620839]
[1749069941848,0.55,2605.1,2603.9,15.620839]
[1749069942550,0.55,2605.1,2603.9,20.354319]
[1749069942752,0.55,2605.1,2603.9,19.610629]
[1749069943125,2.1206,2604.5,2604.0,1.691]
[1749069943449,0.55,2604.8,2604.1,6.372]
[1749069944149,0.55,2604.4,2604.2,8.062]
[1749069944931,0.55,2604.4,2604.3,6.371]
[1749069945145,1.5706,2604.4,2604.3,6.371]
[1749069945352,3.28758132,2604.4,2603.8,8.279]
[1749069945523,0.55,2604.0,2603.9,1.691]
[1749069945723,0.55,2604.0,2603.9,8.062]
[1749069946120,2.1206,2604.0,2603.9,8.062]
[1749069946664,0.55,2604.4,2603.9,8.062]
[1749069948468,0.55,2604.4,2604.0,8.062]
[1749069950956,0.55,2604.1,2604.0,8.062]
[1749069951172,0.55,2604.1,2604.0,1.691]
[1749069951328,0.55,2604.1,2604.0,8.062]
[1749069951528,1.71698132,2604.1,2604.0,8.062]
[1749069952364,1.5706,2604.2,2604.0,8.062]
[1749069953052,10.09921319,2604.1,2603.8,8.279]
[1749069953280,10.09921319,2604.1,2603.9,8.062]
[1749069955167,10.09921319,2604.1,2604.0,6.371]
[1749069957210,0.55,2604.1,2604.0,6.371]
[1749069957904,0.55,2604.1,2604.0,1.688]
[1749069958214,0.76206,2604.1,2604.0,8.059]
[1749069962081,10.31127319,2604.1,2604.0,1.688]
[1749069962285,10.31127319,2604.1,2604.0,8.058]
[1749069963187,5.14373134,2604.1,2604.0,8.058]
[1749069963382,1.5706,2604.2,2604.0,8.058]
[1749069963808,0.55,2604.1,2604.0,8.058]
[1749069964997,0.55,2604.2,2604.0,8.058]
[1749069965592,0.55,2604.3,2604.0,8.058]
[1749069965877,1.5582,2604.9,2604.0,8.058]
[1749069966184,9.4382,2605.1,2604.2,10.0]
[1749069966380,1.5582,2605.1,2604.1,10.0]
[1749069966615,0.55,2605.0,2604.2,16.045949]
[1749069966798,0.55,2605.0,2604.2,15.470129]
[1749069966995,0.55,2605.0,2604.1,15.776979]
[1749069967312,4.59373134,2605.0,2604.1,10.0]
[1749069967497,4.59373134,2604.6,2604.2,8.058]
[1749069967692,0.55,2604.5,2604.2,1.688]
[1749069967930,0.55,2604.5,2604.3,6.369]
[1749069968075,0.55,2604.5,2603.8,8.279]
[1749069968282,0.65449676,2605.0,2603.9,15.27633]
[1749069968531,0.55,2604.8,2604.0,8.800873]
[1749069968708,0.55,2604.8,2603.9,12.65073134]
[1749069968709,0.55,2604.8,2603.9,8.057]
[1749069969086,0.55,2604.8,2604.0,3.408913]
[1749069969280,0.55,2604.8,2604.1,10.0]
[1749069970523,0.55,2604.8,2604.0,4.445835]
[1749069970747,0.55,2604.8,2604.1,10.0]
[1749069971237,0.55,2604.8,2604.0,3.005835]
[1749069971441,0.55,2604.8,2604.1,10.0]
[1749069971643,0.55,2604.8,2604.0,3.235895]
[1749069971819,0.55,2604.8,2604.1,10.0]
[1749069971999,0.55,2604.8,2604.2,9.968]
[1749069972321,7.88,2605.6,2604.6,7.34195158]
[1749069972322,9.449,2605.6,2604.6,7.34195158]
[1749069972520,0.55,2605.4,2604.4,4.59373134]
[1749069972690,0.02,2605.9,2604.5,1.688]
[1749069972691,1.569,2605.2,2604.5,1.688]
[1749069972893,0.55,2605.0,2604.3,2.543]
[1749069973093,0.55,2605.0,2604.6,1.688]
[1749069973292,0.55,2605.0,2604.7,6.368]
[1749069974123,0.2119,2605.0,2604.3,0.51]
[1749069974326,0.2119,2605.0,2604.8,8.056]
[1749069974726,0.2119,2605.0,2604.9,8.056]
[1749069976450,0.2119,2605.0,2604.9,8.055]
[1749069976999,0.2119,2605.0,2604.3,0.51]
[1749069977259,0.55,2604.8,2604.4,1.688]
[1749069977561,0.55,2604.6,2604.4,8.055]
[1749069977901,0.55,2604.6,2604.2,8.28]
[1749069978112,0.55,2604.6,2604.5,1.688]
[1749069979521,0.55,2604.6,2604.5,9.967]
[1749069979721,0.66796313,2604.7,2604.5,9.967]
[1749069979920,0.55,2604.8,2604.5,9.967]
[1749069980573,0.55,2604.8,2604.6,6.366]
[1749069982029,0.55,2604.8,2604.5,9.967]
[1749069982387,0.55,2604.8,2604.7,6.366]
[1749069983581,0.02,2604.9,2604.7,6.366]
[1749069986568,0.55,2604.8,2604.5,9.967]
[1749069986730,0.55,2604.8,2604.6,6.365]
[1749069986931,4.59373134,2604.7,2604.5,9.967]
[1749069987368,0.55,2604.6,2604.5,9.967]
[1749069987562,0.55,2604.6,2604.5,16.332]
[1749069988570,0.55,2604.6,2604.5,9.964]
[1749069988743,1.27121045,2604.6,2604.5,9.964]
[1749069989586,2.89701045,2604.6,2604.5,9.964]
[1749069990089,1.6258,2604.5,2602.1,0.18590365]
[1749069990389,4.59373134,2604.1,2602.9,30.0]
[1749069990539,4.59373134,2604.1,2602.4,0.27962602]
[1749069990540,1.6258,2604.2,2603.1,34.763449]
[1749069990739,1.6258,2604.2,2603.3,2.805301]
[1749069990936,1.6258,2604.2,2603.2,1.685]
[1749069991186,1.6258,2604.2,2603.3,3.349761]
[1749069992469,0.02,2603.9,2603.4,6.365]
[1749069994063,0.02,2603.9,2603.4,6.875]
[1749069995561,0.02,2603.9,2603.4,0.51]
[1749069995764,0.02,2603.9,2603.5,6.365]
[1749069995963,0.02,2603.9,2603.6,1.686]
[1749069996163,0.02,2603.9,2603.6,8.051]
[1749069996378,0.55,2603.7,2603.4,0.51]
[1749069996545,0.55,2603.7,2603.5,8.051]
[1749069996877,0.55,2603.7,2603.6,8.051]
[1749069997480,0.55,2603.7,2603.6,16.331]
[1749069998552,0.55,2603.7,2603.6,9.966]
[1749069999854,0.55,2603.7,2603.6,16.331]
[1749070001585,0.55,2603.7,2603.6,9.966]
[1749070001807,0.76152,2603.7,2603.6,9.966]
[1749070001985,0.76152,2603.7,2603.6,16.331]
[1749070003500,0.76152,2603.7,2603.6,9.966]
[1749070003801,0.76152,2603.7,2603.6,16.331]
[1749070004905,0.76152,2603.7,2603.6,9.966]
[1749070005096,0.76152,2603.7,2603.6,16.33]
[1749070009006,0.55,2603.7,2603.6,16.33]
[1749070009392,0.55,2603.7,2603.6,9.968]
[1749070009611,0.02,2603.9,2603.6,9.968]
[1749070010613,0.02,2603.9,2603.7,6.364]
[1749070011180,0.02,2603.9,2603.8,8.05]
[1749070012009,0.02,2603.9,2603.8,1.686]
[1749070012318,0.02,2603.9,2603.8,8.05]
[1749070012514,0.02,2603.9,2603.8,20.938833]
[1749070012817,0.02,2603.9,2603.8,8.05]
[1749070014009,0.02,2603.9,2603.8,8.049]
[1749070016803,0.02,2603.9,2603.8,1.686]
[1749070017094,0.02,2603.9,2603.8,8.049]
[1749070018291,0.02,2603.9,2603.8,1.686]
[1749070018490,0.02,2603.9,2603.8,8.049]
[1749070025955,0.02,2603.9,2603.8,21.522966]
[1749070026124,0.00131531,2603.9,2603.8,21.87927338]
[1749070026326,0.00131531,2603.9,2603.8,22.23527439]
[1749070026659,1.6124,2605.5,2604.1,30.0]
[1749070027277,1.6124,2605.5,2603.9,30.0]
[1749070028946,9.55116754,2605.3,2603.8,27.694864]
[1749070029163,11.13036754,2605.0,2603.9,1.683]
[1749070029475,11.13036754,2605.0,2604.0,11.685761]
[1749070029988,11.13036754,2605.0,2604.1,7.600561]
[1749070030183,11.13036754,2605.0,2604.1,10.0]
[1749070030396,11.13036754,2605.0,2604.2,10.0]
[1749070030695,0.57,2604.9,2604.3,6.36]
[1749070030859,1.74003675,2604.9,2604.3,6.36]
[1749070033391,0.57,2604.9,2604.3,6.36]
[1749070034063,0.57,2604.9,2604.0,10.0]
[1749070034264,0.57,2604.9,2604.1,6.359]
[1749070034663,0.57,2604.9,2603.6,8.282]
[1749070034664,1.5451,2604.6,2603.6,8.282]
[1749070034881,1.5451,2604.6,2603.7,1.683]
[1749070035082,0.55,2604.5,2603.9,10.0]
[1749070035252,5.14192134,2604.5,2604.0,6.359]
[1749070036092,5.81062347,2604.5,2603.7,1.683]
[1749070036292,5.14192134,2604.5,2604.1,6.359]
[1749070037590,5.14192134,2604.5,2603.7,1.683]
[1749070037900,1.5451,2604.2,2603.8,6.359]
[1749070038248,1.5451,2604.2,2603.7,1.683]
[1749070038458,1.5451,2604.2,2603.8,6.359]
[1749070040882,1.5451,2604.2,2603.7,1.683]
[1749070041190,1.5451,2604.2,2603.8,6.359]
[1749070042289,1.5848,2604.5,2603.9,20.481691]
[1749070042582,1.5848,2604.5,2604.0,10.0]
[1749070042783,1.5848,2604.5,2603.9,10.0]
[1749070043693,6.17672134,2604.5,2603.9,10.0]
[1749070047139,6.17672134,2604.5,2603.8,6.359]
[1749070047140,1.6388,2604.2,2603.8,10.0]
[1749070047435,4.59192134,2604.1,2603.9,6.358]
[1749070048000,4.59192134,2604.1,2604.0,8.28]
[1749070048226,1.6388,2604.2,2604.0,8.28]
[1749070052794,1.6388,2604.2,2604.1,1.681]
[1749070053545,1.619,2604.7,2604.1,1.681]
[1749070053734,0.55,2604.6,2604.1,1.681]
[1749070053932,4.59192134,2604.3,2604.1,1.681]
[1749070054309,4.59192134,2604.3,2604.0,8.28]
[1749070054630,4.59192134,2604.3,2604.1,8.038]
[1749070054833,4.59192134,2604.3,2604.2,6.357]
[1749070055031,4.59192134,2604.3,2604.1,1.681]
[1749070055246,2.79559213,2604.2,2604.1,1.681]
[1749070055452,2.79559213,2604.2,2604.1,8.038]
[1749070056843,2.79559213,2604.2,2604.1,1.681]
[1749070057011,2.79559213,2604.2,2604.1,8.038]
[1749070057748,2.79559213,2604.2,2604.1,9.961]
[1749070057952,7.38751347,2604.2,2604.1,9.961]
[1749070059039,7.38751347,2604.2,2604.1,16.318]
[1749070059241,7.38751347,2604.2,2604.1,9.961]
[1749070060057,0.55,2603.6,2603.5,6.357]
[1749070060220,0.2,2603.4,2602.5,40.0]
[1749070060414,0.2,2603.4,2602.5,30.0]
[1749070060758,0.2,2603.2,2602.5,30.0]
[1749070061064,0.2,2603.2,2602.5,23.333102]